Cogmind - Beta 13 @@@ ROGUE MODE // 2024.04.11 @ 23:43:28 Player: Olafz Result: Destroyed by as-26159 with Assembled Heavy Rifle Performance ------------- Evolutions (0) 0 Regions Visited (2) 400 Robots Destroyed (16) 80 Value Destroyed (355) 355 Prototype IDs (2) 40 Alien Tech Used (0) 0 Bonus (-42) -42 TOTAL SCORE: 833 Bonus ------- Friendly Fire -42 Cogmind --------- Core Integrity 0/250 Matter 192/300 Energy 90/100 System Corruption 0% Temperature Cool (53) Movement Treading (160) Location -10/Mines Parts ------- > --- POWER (1) -------- (None) > --- PROPULSION (2) --- Light Treads Light Treads > --- UTILITY (2) ------ Large Storage Unit Structural Scanner > --- WEAPON (2) ------- Particle Gun > --- INVENTORY (15) --- Light Ion Engine Wheel Compact Wheel Small Laser Small Laser Light Assault Rifle Peak State ------------ > --- POWER ------------ Light Ion Engine > --- PROPULSION ------- Aluminum Leg Aluminum Leg > --- UTILITY ---------- Large Storage Unit > --- WEAPON ----------- Medium Laser Particle Gun > --- INVENTORY -------- Light Ion Engine Light Treads Light Treads Aluminum Leg Wheel Compact Wheel Small Laser Small Laser Light Assault Rifle Grenade Launcher [Rating: 8] Favorites ----------- Power Light Ion Engine Engine Light Ion Engine Propulsion Aluminum Leg Treads Light Treads Leg Aluminum Leg Utility Large Storage Unit Device Heat Sink Storage Large Storage Unit Weapon Small Laser Energy Gun Small Laser Launcher Grenade Launcher Build | -11 -10 -10 ------- Run | Yrd Mat Min Slots Evolved . | . . . Power . | . . . Propulsion . | . . . Utility . | . . . Weapon . | . . . Parts Attached 17 | . 11 6 Power 4 | . 2 2 Engine 4 | . 2 2 Core . | . . . Reactor . | . . . Propulsion 7 | . 5 2 Treads 2 | . . 2 Leg 5 | . 5 . Wheel . | . . . Hover . | . . . Flight . | . . . Utility 3 | . 2 1 Device 2 | . 1 1 Storage 1 | . 1 . Processor . | . . . Hackware . | . . . Protection . | . . . Artifact . | . . . Weapon 3 | . 2 1 Energy Gun 2 | . 2 . Energy Cannon . | . . . Ballistic Gun . | . . . Ballistic Cannon . | . . . Launcher 1 | . . 1 Special Weapon . | . . . Impact Weapon . | . . . Slashing Weapon . | . . . Piercing Weapon . | . . . Special Melee Weapon . | . . . Unidentified Prototypes . | . . . Parts Lost 6 | . 1 5 Power 3 | . . 3 Propulsion . | . . . Utility 1 | . 1 . Weapon 2 | . . 2 Highest Loss Streak 2 | . 1 2 To Critical Strikes . | . . . Average Slot Usage (%) 89 | . 89 88 Engine 13 | . 14 11 Treads 3 | . . 16 Leg 23 | . 28 10 Device 4 | . 4 8 Storage 14 | . 14 14 Energy Gun 25 | . 28 17 Launcher 1 | . . 8 Naked Turns . | . . . Heaviest Build 30 | 10 28 30 Greatest Support 40 | 20 20 40 Greatest Overweight (x) 2 | . 2 1 Average Overweight (x) . | . . . Largest Inventory Capacity 15 | . 15 15 Average Capacity 13 | . 13 15 Most Carried 15 | . 15 13 Average Carried 10 | . 10 8 Final Capacity 15 | 8 15 15 Final Carried 13 | 6 13 6 Class Distribution -------------------- 68% | Mutant 31% | Scavenger-Mutant Dominant Class ---------------- Mutant | -10/Materials Mutant | -10/Mines Resources | -11 -10 -10 ----------- Run | Yrd Mat Min Matter Collected 369 | 189 146 34 Remotely . | . . . Salvage Created 412 | . 336 76 Parts 30 | . 23 7 Haulers Intercepted . | . . . Recyclers Shooed 1 | . . 1 Parts Field Recycled . | . . . Retrieved Matter . | . . . Parts Self-Destructed . | . . . Prevented . | . . . Kills | -11 -10 -10 ------- Run | Yrd Mat Min Combat Hostiles Destroyed 13 | . 7 6 Guns 10 | . 6 4 AOE 3 | . 1 2 Classes Destroyed 5 | . 2 3 Worker 1 | . . 1 Builder 4 | . 4 . Swarmer 4 | . . 4 Grunt 7 | . 7 . Assembled 2 | . . 2 Best Kill Streak 4 | . 4 2 Combat Bots Only 2 | . 2 2 Max Kills in Single Turn 2 | . 2 1 Gunslinging . | . . . Exploded 1 | . 1 1 Melee . | . . . Uniques/NPCs Destroyed . | . . . Combat | -11 -10 -10 -------- Run | Yrd Mat Min Hostile Shots Fired 117 | . 63 54 Missed 28 | . 19 9 Damage Taken 1081 | . 524 557 Core 254 | . 172 82 Absorbed by Shields . | . . . Core Remaining (%) 100 | 100 . . Volleys Fired 67 | . 43 24 Largest 2 | . 2 2 Hottest 115 | . 115 115 Shots Fired 121 | . 86 35 Gun 118 | . 86 32 Cannon . | . . . Launcher 3 | . . 3 Special . | . . . Kinetic . | . . . Thermal 118 | . 86 32 Explosive 3 | . . 3 Electromagnetic . | . . . Robot Hit Streak 14 | . 14 5 Robot Miss Streak 5 | . 5 3 Penetration Max . | . . . Secondary Targets . | . . . Shots Hit Robots 62 | . 48 14 Core Hits 38 | . 20 18 Critical Kills . | . . . Critical Parts Destroyed . | . . . Critical Strikes 5 | . 4 1 Burn 5 | . 4 1 Melee Attacks . | . . . Impact . | . . . Slashing . | . . . Piercing . | . . . Sneak Attacks . | . . . Combat Hostiles . | . . . Follow-up Attacks . | . . . Damage Inflicted 1377 | . 811 566 Guns 823 | . 620 203 Cannons . | . . . Explosions 527 | . 191 336 Melee . | . . . Ramming 27 | . . 27 Kinetic . | . . . Thermal 823 | . 620 203 Explosive 527 | . 191 336 Electromagnetic . | . . . Impact . | . . . Slashing . | . . . Piercing . | . . . Highest Corruption . | . . . Average Corruption . | . . . Corruption Purged . | . . . Corruption Blocked . | . . . Overload Shots . | . . . Overflow Damage 15 | . . 15 Projectiles . | . . . Explosions 15 | . . 15 Melee . | . . . Knockbacks . | . . . Impact . | . . . Kinetic . | . . . Secondary . | . . . Self-Inflicted Damage 54 | . . 54 Shots 2 | . . 2 Rammed 2 | . . 2 Targets Rammed 5 | . . 5 Kicked 2 | . . 2 Crushed 1 | . . 1 Highest Temperature 447 | . 447 440 Average Temperature 166 | . 154 194 Received Heat Transfer 315 | . 315 . Effects 6 | . 5 1 Shutdowns 2 | . 2 . Matter Decay 2 | . 1 1 Short Circuit 1 | . 1 . Damage (minor) 1 | . 1 . Siege Activations . | . . . Robots Corrupted . | . . . Combat Hostiles . | . . . Parts Fried . | . . . Impact Corruptions . | . . . Robots Melted . | . . . Combat Hostiles . | . . . Parts Melted 4 | . 3 1 Heat Transferred 2497 | . 1905 592 Parts Sabotaged . | . . . Parts Stolen . | . . . Parts Stripped . | . . . Power Chain Reactions . | . . . Alert | -11 -10 -10 ------- Run | Yrd Mat Min Peak Influence 236 | . 236 187 Initial 39 | . . 39 Average 93 | . 81 128 Maximum Alert Level 1 | . 1 . Low Security (%) 91 | . 89 100 Level 1 8 | . 10 . Level 2 . | . . . Level 3 . | . . . Level 4 . | . . . Level 5 . | . . . High Security . | . . . Max Security . | . . . Squads Dispatched 2 | . 2 . Investigation 1 | . 1 . Extermination . | . . . Reinforcement 1 | . 1 . Assault . | . . . Garrison . | . . . Intercept . | . . . Searches Triggered . | . . . Construction Impeded . | . . . Haulers Reinforced . | . . . Active Scanning Responses . | . . . Cargo Convoy Interrupts . | . . . Stealth | -11 -10 -10 --------- Run | Yrd Mat Min Distress Signals 1 | . . 1 Communications Jammed . | . . . Distress Signals . | . . . Times Spotted 38 | . 13 25 Peak Tracking Total 16 | . 3 16 Tactical Retreats 5 | . 2 3 Traps | -11 -10 -10 ------- Run | Yrd Mat Min Traps Triggered 1 | . 1 . Indirectly . | . . . Trap Hack Attempts . | . . . Triggered . | . . . Disarmed . | . . . Reprogrammed . | . . . Reused . | . . . Traps Extracted . | . . . Installed . | . . . Triggered . | . . . Machines | -11 -10 -10 ---------- Run | Yrd Mat Min Machines Disabled 3 | . 1 2 Max in Single Turn 2 | . 1 2 Machines Repaired . | . . . Machines Dismantled . | . . . Machines Sabotaged . | . . . Overloaded Fab Kills . | . . . Hacking | -11 -10 -10 --------- Run | Yrd Mat Min Machines Accessed 2 | . 2 . Terminals 2 | . 2 . Fabricators . | . . . Repair Stations . | . . . Recycling Units . | . . . Scanalyzers . | . . . Garrison Access . | . . . Total Hacks 7 | . 7 . Successful 3 | . 3 . Failed 4 | . 4 . Catastrophic . | . . . Database Lockouts . | . . . Manual 6 | . 6 . Terminals 7 | . 7 . Fabricators . | . . . Repair Stations . | . . . Recycling Units . | . . . Scanalyzers . | . . . Garrison Access . | . . . Terminal Hacks 1 | . 1 . Prototype ID Bank 1 | . 1 . Fabricator Hacks . | . . . Repair Station Hacks . | . . . Recycling Unit Hacks . | . . . Scanalyzer . | . . . Garrison Access Hacks . | . . . Unauthorized Hacks 2 | . 2 . Terminals 2 | . 2 . Botnet 2 | . 2 . Fabricators . | . . . Repair Stations . | . . . Recycling Units . | . . . Scanalyzers . | . . . Garrison Access . | . . . Data Cores Recovered . | . . . Used . | . . . Hacking Detections 2 | . 2 . Full Trace Events 1 | . 1 . Feedback Events . | . . . Feedback Blocked . | . . . Robot Schematics Acquired . | . . . Robots Built . | . . . Authchips . | . . . Time . | . . . Total Robot Build Rating . | . . . Part Schematics Acquired . | . . . Parts Built . | . . . Authchips . | . . . Time . | . . . Total Part Build Rating . | . . . Parts Repaired . | . . . Time . | . . . Parts Recycled . | . . . Recycled Matter . | . . . Retrieved Matter . | . . . Retrieved Components . | . . . Parts Scanalyzed . | . . . Part Schematics Acquired . | . . . Parts Damaged . | . . . Bothacking | -11 -10 -10 ------------ Run | Yrd Mat Min Used RIF Installer . | . . . Robots Hacked . | . . . Non-combat . | . . . Combat . | . . . Robot Hacks Applied . | . . . Relay Couplers Released . | . . . Fabnet Peak Effective % . | . . . Robots Rewired . | . . . Allies Hacked . | . . . Hacks Repelled . | . . . Allies | -11 -10 -10 -------- Run | Yrd Mat Min Total Allies . | . . . Largest Group . | . . . Highest-Rated Group . | . . . Highest-Rated Ally . | . . . Total Orders . | . . . Ally Attacks . | . . . Total Damage . | . . . Kills . | . . . Allies Corrupted . | . . . Allies Melted . | . . . Intel | -11 -10 -10 ------- Run | Yrd Mat Min Robot Analysis Total . | . . . Derelict Logs Recovered 1 | . . 1 Drone Launches . | . . . Drone Recoveries . | . . . Exploration | -11 -10 -10 ------------- Run | Yrd Mat Min Turns Passed 828 | . 629 199 Spaces Moved 342 | 1 269 72 Core . | . . . Treads 59 | . . 59 Legs 283 | 1 269 13 Wheels . | . . . Hover . | . . . Flight . | . . . Fastest Speed 120 | 120 120 160 Average Speed 165 | 120 165 165 Slowest Speed 260 | 120 260 190 Overloaded Moves . | . . . Propulsion Burnouts . | . . . Robots Hopped . | . . . Cave-ins Triggered . | . . . Exploration Rate (%) 23 | 1 46 22 Regions Visited 2 Branch Regions 1 Pre-discovered Areas . | . . . Known Exits Taken . | . . . Unknown Exits Taken 2 | 1 1 . Scrap Searched . | . . . Spaces Dug . | . . . Terrain Destroyed 34 | . 16 18 Melee . | . . . Projectile . | . . . AOE 34 | . 16 18 Terrain Rammed . | . . . Walls Destroyed . | . . . Machines Disabled . | . . . Actions | -11 -10 -10 --------- Run | Yrd Mat Min Total 483 | . 366 117 Wait 39 | . 36 3 Move 340 | . 268 72 Hop . | . . . Pick Up 4 | . 3 1 Fast Attach 3 | . 3 . Attach 8 | . 2 6 Detach 4 | . 2 2 Swap 6 | . 6 . Drop 7 | . 3 4 Fire 67 | . 43 24 Melee . | . . . Ram . | . . . Kick 2 | . . 2 Crush 3 | . . 3 Escape Stasis . | . . . Rewire . | . . . Trap . | . . . Miscellaneous . | . . . Route ------- -11/Scrapyard -10/Materials -10/Mines History --------- Turn | Location | Event 1 | -11/Scrapyard | Discovered new exit (range 0) 1 | -11/Scrapyard | Entered Materials 211 | -10/Materials | Discovered new exit (range 12) 302 | -10/Materials | Build established: Mutant 489 | -10/Materials | Core integrity fell below 50% 630 | -10/Materials | Entered Mines 695 | -10/Mines | Core integrity fell below 20% 794 | -10/Mines | Assembled infested the area 795 | -10/Mines | Learned location of 1 exit from Materials 799 | -10/Mines | Assisted by a Guerilla fighting off Assembled 829 | -10/Mines | Destroyed by as-26159 with Assembled Heavy Rifle Last Messages --------------- as-01857 suffers critical hit (Destroy). as-01857 destroyed. as-69533 destroyed. MY-BSZ(h) system terminally corrupted. K-01 Serf collects debris. Slammed into K-01 Serf. K-01 Serf destroyed. as-84262 destroyed. as-48920 destroyed. as-56257 destroyed. as-94486 destroyed. as-96675 destroyed. Lgt. Ion Engine destroyed. as-29521 destroyed. as-78124 destroyed. as-40604 destroyed. as-65150 destroyed. Seismic Survey Station disabled. Core Extractor disabled. Grenade Launcher destroyed. Map ----- +----------------------------------------------------+ | ????????????????????????????????????????? | | ????????????????????????????????????????? | | ????????????????????????????????????????? | | ????????????????????????????????????????? | | ????????????????????????????????????????? | | ???????????????????????????????#????????? | | ?????????????????????????????? ?????????? | | ???????????????????#### ????? ??????????? | | ???????# ########???? #??????????? | | ??????# =[ % ##??? #??????????? | | ????? ######%##?? #??????????? | | ?????????? ######### #### #???????????? | | ??????????####### ##=## ##????????????? | | ??????????## =[= ##????????????? | | ?????????### = ###????????????? | | ?????????### #####????????????? | | ?????????## ### #####?????????????? | | ?????????## ###########???????????????? | | ?????????### ####################??????? | | ?????????### ##??################??????? | | ??????????## ##??## ##??????? | | ??????????## ##??## """ """ ##??????? | | ??????????## ##??## """ """ ##??????? | | ??????????## ##??## """ """ ##??????? | | ????######## ##??## ##??????? | | #???######## ##??## "" @ " ##??????? | | ##??## aa ##??????? | | ???######## ##??## t" " ##??????? | | ????######## ##??## % ##??????? | | ??????????## ######## a ######??????? | | ??????????## #########a##########??????? | | ??????????## #### ### ######??????????? | | ??????????## ### ## ###?????????????? | | ??????????## ## ##????????? ##?? | | ??????????## ### #### ????? ##?? | | ??????????## #####" "### ##?? | | ??????????### #########^ ^ # ???????? | | ??????????#########??##= %"#^# ##???????? | | ???????????#####?????## ] ##???????? | | ?????????????????????## %% # ##???????? | | ?????????????????????## ###??????? | | ?????????????????????## ##??????? | | ?????????????????????"#"" % ###???? | | ?????????????????????"### ###??? | | ?????????????????????#### ###?? | | ???????????????????????## # ## ##?? | | ???????????????????????###### ### ##?? | | ????????????????????????##### #### ###?? | | ????????????????????????????? ########?? | | ?????????????????????????????? ??#####??? | +----------------------------------------------------+ Best States ------------- Heat Dissipation 35 Energy Generation 10 Energy Capacity 125 Matter Stores 300 Matter Capacity 300 Sight Range 16 Terrain Scan Density 10 Evasion (%) 55 Recoil Reduction 2 Item Schematics ----------------- None Robot Schematics ------------------ None Fabricated ------------ Nothing Alien Tech Used ----------------- None Achievements -------------- None Challenges ------------ None Game ------ Seed IntegrityLargeSource Manual? 0 Play Time 00:09:16 Cumulative 43.3 hours Start 2024.04.11 @ 23:31:46 End 2024.04.11 @ 23:43:28 Sessions 1 Manual Loads 0 Difficulty Rogue Special Mode None Game No. 113 Rogue 111 Adventurer 2 Explorer 0 Win Type - Total 0 Types 0/0/0/0/0/0/0/0/0 Lore% 29 Gallery% 36 Achievement% 27 Wizard Run 0 Options --------- Layout 2 ASCII 0 Keyboard 1 Movement Numpad Keybinds 1 Fullscreen 2 Font 24/Smallcaps Map View 50x44 Zoom Use 0% Tactical HUD 1 Map Filters NONE Filters NONE Steam 1 RUN: b36c4787-041f-4c3e-8e70-00e4d3663d92